[Event "Betsys MČR v online bleskovém šachu 2021"]
[Site "Chess.com"]
[Date "2021.04.17"]
[Round "9"]
[White "vadoto"]
[Black "svobodan"]
[Result "0-1"]
[WhiteElo "1342"]
[BlackElo "1644"]
[TimeControl "180+1"]
[EndTime "10:30:32 PDT"]
[Termination "Uživatel svobodan zvítězil matem"]

1. e4 {[%clk 0:03:00.3]} 1... c5 {[%clk 0:02:59.4]} 2. Nf3 {[%clk 0:02:59.9]}
2... d6 {[%clk 0:02:58]} 3. Nc3 {[%clk 0:02:58.6]} 3... Nf6 {[%clk 0:02:57.5]}
4. d4 {[%clk 0:02:58.2]} 4... cxd4 {[%clk 0:02:57.8]} 5. Nxd4 {[%clk 0:02:58.3]}
5... a6 {[%clk 0:02:58.4]} 6. Be2 {[%clk 0:02:53.4]} 6... e5 {[%clk 0:02:57.6]}
7. Nf3 {[%clk 0:02:52.8]} 7... Be7 {[%clk 0:02:56.9]} 8. O-O {[%clk 0:02:50]}
8... h6 {[%clk 0:02:56.4]} 9. Be3 {[%clk 0:02:48.2]} 9... Be6 {[%clk 0:02:56.1]}
10. Bd3 {[%clk 0:02:43]} 10... O-O {[%clk 0:02:55]} 11. Qe2 {[%clk 0:02:42.1]}
11... Nc6 {[%clk 0:02:53.1]} 12. Rad1 {[%clk 0:02:38.4]} 12... b5 {[%clk
0:02:47.1]} 13. a3 {[%clk 0:02:35.7]} 13... Na5 {[%clk 0:02:35.4]} 14. Nh4
{[%clk 0:02:29.7]} 14... Nc4 {[%clk 0:02:30]} 15. Nf5 {[%clk 0:02:26.6]} 15...
Nxb2 {[%clk 0:02:18.3]} 16. Nxe7+ {[%clk 0:02:25.3]} 16... Qxe7 {[%clk
0:02:16.4]} 17. Nd5 {[%clk 0:02:16.9]} 17... Nxd5 {[%clk 0:02:05.3]} 18. exd5
{[%clk 0:02:16.5]} 18... Bd7 {[%clk 0:02:04.1]} 19. Be4 {[%clk 0:02:13.5]} 19...
f5 {[%clk 0:01:57.7]} 20. Bf3 {[%clk 0:02:07.9]} 20... Nc4 {[%clk 0:01:52.6]}
21. Bc1 {[%clk 0:01:55.6]} 21... e4 {[%clk 0:01:41]} 22. Bh5 {[%clk 0:01:53.9]}
22... f4 {[%clk 0:01:37.5]} 23. Rd4 {[%clk 0:01:42.4]} 23... Bf5 {[%clk
0:01:23.3]} 24. f3 {[%clk 0:01:31.6]} 24... e3 {[%clk 0:01:19]} 25. Rxf4 {[%clk
0:01:28.1]} 25... Qe5 {[%clk 0:01:02.5]} 26. Rh4 {[%clk 0:01:19.5]} 26... g5
{[%clk 0:00:57.6]} 27. Rh3 {[%clk 0:01:15.8]} 27... Bxh3 {[%clk 0:00:56.8]} 28.
gxh3 {[%clk 0:01:14.7]} 28... Qf4 {[%clk 0:00:46.3]} 29. Re1 {[%clk 0:01:10.2]}
29... Qh4 {[%clk 0:00:29.3]} 30. Bg4 {[%clk 0:01:06.1]} 30... Rae8 {[%clk
0:00:19.4]} 31. Be6+ {[%clk 0:01:02.7]} 31... Kh7 {[%clk 0:00:18.5]} 32. Qd3+
{[%clk 0:00:59.1]} 32... Kg7 {[%clk 0:00:13.8]} 33. Qd4+ {[%clk 0:00:51.5]}
33... Qxd4 {[%clk 0:00:08.2]} 34. Kf1 {[%clk 0:00:41.7]} 34... Qc5 {[%clk
0:00:06.6]} 35. Re2 {[%clk 0:00:38]} 35... Rxf3+ {[%clk 0:00:06.4]} 36. Kg2
{[%clk 0:00:35.4]} 36... Rf2+ {[%clk 0:00:06.7]} 37. Rxf2 {[%clk 0:00:34.8]}
37... exf2 {[%clk 0:00:07.3]} 38. Kf1 {[%clk 0:00:34.7]} 38... Ne3+ {[%clk
0:00:06]} 39. Bxe3 {[%clk 0:00:33.6]} 39... Qxe3 {[%clk 0:00:06.6]} 40. Bd7
{[%clk 0:00:32.7]} 40... Qe1+ {[%clk 0:00:06.2]} 41. Kg2 {[%clk 0:00:32.5]}
41... f1=Q# {[%clk 0:00:06.5]} 0-1

[Event "Betsys MČR v online bleskovém šachu 2021"]
[Site "Chess.com"]
[Date "2021.04.17"]
[Round "9"]
[White "AdaTra"]
[Black "Listro33"]
[Result "0-1"]
[WhiteElo "1661"]
[BlackElo "1867"]
[TimeControl "180+1"]
[EndTime "10:30:33 PDT"]
[Termination "Uživatel Listro33 zvítězil matem"]

1. d4 {[%clk 0:03:00.9]} 1... Nf6 {[%clk 0:02:57.4]} 2. Nf3 {[%clk 0:03:00.8]}
2... d5 {[%clk 0:02:55.9]} 3. c4 {[%clk 0:03:00.5]} 3... e6 {[%clk 0:02:54.9]}
4. Nc3 {[%clk 0:03:00.3]} 4... Be7 {[%clk 0:02:54.6]} 5. Bf4 {[%clk 0:02:58.1]}
5... O-O {[%clk 0:02:54.2]} 6. e3 {[%clk 0:02:57.5]} 6... Nbd7 {[%clk
0:02:50.8]} 7. cxd5 {[%clk 0:02:56.9]} 7... exd5 {[%clk 0:02:47.8]} 8. Bd3
{[%clk 0:02:55.8]} 8... Nh5 {[%clk 0:02:39.9]} 9. Bg3 {[%clk 0:02:52.8]} 9...
Nxg3 {[%clk 0:02:39.5]} 10. hxg3 {[%clk 0:02:53.7]} 10... Nf6 {[%clk 0:02:36.6]}
11. Ne5 {[%clk 0:02:48.8]} 11... h6 {[%clk 0:02:34.1]} 12. Bc2 {[%clk
0:02:28.2]} 12... c5 {[%clk 0:02:23.4]} 13. Qd2 {[%clk 0:02:17.4]} 13... c4
{[%clk 0:02:19.5]} 14. b3 {[%clk 0:02:12.5]} 14... cxb3 {[%clk 0:02:08.3]} 15.
axb3 {[%clk 0:02:12]} 15... Be6 {[%clk 0:02:03.5]} 16. Qd3 {[%clk 0:02:08.4]}
16... Rc8 {[%clk 0:01:53.3]} 17. O-O {[%clk 0:02:06.4]} 17... Qc7 {[%clk
0:01:47.2]} 18. Rfc1 {[%clk 0:01:25.3]} 18... Qxc3 {[%clk 0:01:42]} 19. Qe2
{[%clk 0:01:24.4]} 19... Qb4 {[%clk 0:01:36.8]} 20. Rxa7 {[%clk 0:01:16.4]}
20... Rc3 {[%clk 0:01:33.4]} 21. Nd3 {[%clk 0:00:59.8]} 21... Qb6 {[%clk
0:01:27]} 22. Ra4 {[%clk 0:00:55.4]} 22... Rfc8 {[%clk 0:01:23.2]} 23. Qd2
{[%clk 0:00:53.6]} 23... Ne4 {[%clk 0:01:14.3]} 24. Qe2 {[%clk 0:00:47]} 24...
Bg4 {[%clk 0:01:00.6]} 25. f3 {[%clk 0:00:43.4]} 25... Nxg3 {[%clk 0:00:59.3]}
26. Qf2 {[%clk 0:00:41]} 26... Rxd3 {[%clk 0:00:56.4]} 27. fxg4 {[%clk
0:00:23.2]} 27... Ne4 {[%clk 0:00:48.4]} 28. Qf1 {[%clk 0:00:20.6]} 28... Rdc3
{[%clk 0:00:37.9]} 29. Kh2 {[%clk 0:00:19.4]} 29... Rxc2 {[%clk 0:00:35.4]} 30.
Rca1 {[%clk 0:00:15.4]} 30... Qf6 {[%clk 0:00:30.6]} 31. Qe1 {[%clk 0:00:13.1]}
31... Bd6+ {[%clk 0:00:24.4]} 32. Kh1 {[%clk 0:00:08.7]} 32... Qf2 {[%clk
0:00:19.3]} 33. Ra5 {[%clk 0:00:02.6]} 33... Qxg2# {[%clk 0:00:18]} 0-1

[Event "Betsys MČR v online bleskovém šachu 2021"]
[Site "Chess.com"]
[Date "2021.04.17"]
[Round "9"]
[White "Millbo64"]
[Black "stripe122"]
[Result "0-1"]
[WhiteElo "1983"]
[BlackElo "1807"]
[TimeControl "180+1"]
[EndTime "10:30:35 PDT"]
[Termination "Uživatel stripe122 zvítězil po vzdání soupeře"]

1. e4 {[%clk 0:03:00.9]} 1... c5 {[%clk 0:02:58.1]} 2. Nc3 {[%clk 0:02:59]} 2...
e6 {[%clk 0:02:56.3]} 3. f4 {[%clk 0:02:58.5]} 3... d5 {[%clk 0:02:55.4]} 4.
exd5 {[%clk 0:02:58.4]} 4... exd5 {[%clk 0:02:55.6]} 5. Nf3 {[%clk 0:02:56.2]}
5... Nf6 {[%clk 0:02:54.2]} 6. d4 {[%clk 0:02:56.3]} 6... Nc6 {[%clk 0:02:48.1]}
7. Bb5 {[%clk 0:02:55.7]} 7... Bg4 {[%clk 0:02:46.7]} 8. O-O {[%clk 0:02:54.3]}
8... Be7 {[%clk 0:02:36.5]} 9. Re1 {[%clk 0:02:54]} 9... O-O {[%clk 0:02:35.9]}
10. h3 {[%clk 0:02:53.6]} 10... Bxf3 {[%clk 0:02:33.8]} 11. Qxf3 {[%clk
0:02:53.7]} 11... Nxd4 {[%clk 0:02:34.2]} 12. Qf2 {[%clk 0:02:50]} 12... Nxb5
{[%clk 0:02:16.7]} 13. Nxb5 {[%clk 0:02:50]} 13... Ne4 {[%clk 0:02:15.4]} 14.
Qf3 {[%clk 0:02:37.7]} 14... Bf6 {[%clk 0:02:07.7]} 15. c4 {[%clk 0:02:27]}
15... Qa5 {[%clk 0:01:40.6]} 16. Be3 {[%clk 0:01:52.8]} 16... dxc4 {[%clk
0:01:30.6]} 17. Na3 {[%clk 0:01:37.3]} 17... Nd6 {[%clk 0:01:10.1]} 18. Red1
{[%clk 0:01:29.3]} 18... Bxb2 {[%clk 0:01:07.6]} 19. Rab1 {[%clk 0:01:19.4]}
19... Bxa3 {[%clk 0:01:03.6]} 20. Rxd6 {[%clk 0:01:19.3]} 20... b6 {[%clk
0:00:57.2]} 21. f5 {[%clk 0:01:04.4]} 21... f6 {[%clk 0:00:55.5]} 22. Rd7 {[%clk
0:00:58.9]} 22... Kh8 {[%clk 0:00:43.4]} 23. Qb7 {[%clk 0:00:43.5]} 23... Rab8
{[%clk 0:00:34.8]} 24. Qc7 {[%clk 0:00:29.8]} 24... Rfc8 {[%clk 0:00:30.1]} 25.
Qd6 {[%clk 0:00:20.8]} 25... Re8 {[%clk 0:00:27.3]} 26. Bf4 {[%clk 0:00:18.1]}
26... Rbc8 {[%clk 0:00:24.4]} 27. Rf1 {[%clk 0:00:13.5]} 27... Qc3 {[%clk
0:00:20.3]} 28. Qd5 {[%clk 0:00:12.5]} 28... Qd4+ {[%clk 0:00:19.2]} 29. Qxd4
{[%clk 0:00:12.5]} 29... cxd4 {[%clk 0:00:20.1]} 30. Rxd4 {[%clk 0:00:13]} 30...
Bc5 {[%clk 0:00:19.4]} 31. Rd1 {[%clk 0:00:13.2]} 31... Bxd4+ {[%clk 0:00:19.3]}
32. Rxd4 {[%clk 0:00:13.6]} 32... c3 {[%clk 0:00:19.5]} 33. Kf2 {[%clk
0:00:10.8]} 33... c2 {[%clk 0:00:19.2]} 34. Bc1 {[%clk 0:00:11]} 34... Red8
{[%clk 0:00:17.4]} 35. Rb4 {[%clk 0:00:09.6]} 35... Rd1 {[%clk 0:00:16.5]} 36.
Ba3 {[%clk 0:00:09.7]} 36... c1=Q {[%clk 0:00:15.1]} 37. Bxc1 {[%clk 0:00:10.3]}
37... Rdxc1 {[%clk 0:00:14.9]} 0-1

[Event "Betsys MČR v online bleskovém šachu 2021"]
[Site "Chess.com"]
[Date "2021.04.17"]
[Round "9"]
[White "Simaril76"]
[Black "EDA16"]
[Result "0-1"]
[WhiteElo "719"]
[BlackElo "1149"]
[TimeControl "180+1"]
[EndTime "10:30:35 PDT"]
[Termination "Uživatel EDA16 zvítězil na čas"]

1. b3 {[%clk 0:02:55.1]} 1... Nf6 {[%clk 0:02:55.4]} 2. e3 {[%clk 0:02:55.6]}
2... g5 {[%clk 0:02:53.3]} 3. Bb2 {[%clk 0:02:55.9]} 3... Bg7 {[%clk 0:02:52]}
4. f4 {[%clk 0:02:53.9]} 4... gxf4 {[%clk 0:02:46.8]} 5. exf4 {[%clk 0:02:51.2]}
5... O-O {[%clk 0:02:45.1]} 6. Nf3 {[%clk 0:02:52.1]} 6... d6 {[%clk 0:02:43.2]}
7. Ng5 {[%clk 0:02:49.4]} 7... h6 {[%clk 0:02:40.7]} 8. Nh3 {[%clk 0:02:46.4]}
8... Bf5 {[%clk 0:02:36.3]} 9. Bd3 {[%clk 0:02:40.1]} 9... Bxd3 {[%clk
0:02:34.1]} 10. cxd3 {[%clk 0:02:39.1]} 10... Nc6 {[%clk 0:02:33.2]} 11. Qe2
{[%clk 0:02:37.4]} 11... Qd7 {[%clk 0:02:29.8]} 12. Nc3 {[%clk 0:02:37]} 12...
Rfe8 {[%clk 0:02:21.9]} 13. O-O-O {[%clk 0:02:35]} 13... e5 {[%clk 0:02:18.4]}
14. Ne4 {[%clk 0:02:27]} 14... Qe6 {[%clk 0:02:08.8]} 15. Nxf6+ {[%clk
0:02:14.9]} 15... Qxf6 {[%clk 0:02:07.5]} 16. fxe5 {[%clk 0:01:48]} 16... Nxe5
{[%clk 0:02:02.8]} 17. d4 {[%clk 0:01:39.7]} 17... Nc6 {[%clk 0:01:43.2]} 18.
Qf2 {[%clk 0:01:32]} 18... Qxf2 {[%clk 0:01:37.6]} 19. Nxf2 {[%clk 0:01:30.5]}
19... Bxd4 {[%clk 0:01:33.4]} 20. Nd3 {[%clk 0:01:17.3]} 20... Bxb2+ {[%clk
0:01:28.4]} 21. Kxb2 {[%clk 0:01:13.8]} 21... Nd4 {[%clk 0:01:25.8]} 22. Nf4
{[%clk 0:01:02]} 22... Ne2 {[%clk 0:01:22.1]} 23. Nxe2 {[%clk 0:00:56.5]} 23...
Rxe2 {[%clk 0:01:21.6]} 24. g3 {[%clk 0:00:49.6]} 24... Rae8 {[%clk 0:01:19.6]}
25. Kc2 {[%clk 0:00:45.1]} 25... R8e5 {[%clk 0:01:15.5]} 26. Kd3 {[%clk
0:00:44.4]} 26... R2e4 {[%clk 0:01:05]} 27. Kc2 {[%clk 0:00:31.8]} 27... c5
{[%clk 0:01:00.4]} 28. d3 {[%clk 0:00:25.6]} 28... Re2+ {[%clk 0:00:57.7]} 29.
Rd2 {[%clk 0:00:21.6]} 29... Rxd2+ {[%clk 0:00:54.6]} 30. Kxd2 {[%clk
0:00:20.9]} 30... Kg7 {[%clk 0:00:53.2]} 31. Rc1 {[%clk 0:00:18.3]} 31... Kf6
{[%clk 0:00:50.4]} 32. Kc3 {[%clk 0:00:17.7]} 32... Kg5 {[%clk 0:00:47.9]} 33.
Rg1 {[%clk 0:00:15.1]} 33... Kg4 {[%clk 0:00:46]} 34. d4 {[%clk 0:00:10.9]}
34... cxd4+ {[%clk 0:00:44.8]} 35. Kxd4 {[%clk 0:00:10.5]} 35... Re2 {[%clk
0:00:44.1]} 36. Kd5 {[%clk 0:00:09.2]} 36... Rxa2 {[%clk 0:00:42.9]} 37. Kxd6
{[%clk 0:00:08.8]} 37... Rxh2 {[%clk 0:00:41.5]} 38. Kc7 {[%clk 0:00:06.6]}
38... Rb2 {[%clk 0:00:39.5]} 39. Kxb7 {[%clk 0:00:04.9]} 39... Rxb3+ {[%clk
0:00:39.3]} 40. Kxa7 {[%clk 0:00:05.4]} 40... Rxg3 {[%clk 0:00:38.8]} 41. Rf1
{[%clk 0:00:03.1]} 41... h5 {[%clk 0:00:37.6]} 42. Rxf7 {[%clk 0:00:02.3]} 42...
h4 {[%clk 0:00:36.6]} 0-1

[Event "Betsys MČR v online bleskovém šachu 2021"]
[Site "Chess.com"]
[Date "2021.04.17"]
[Round "9"]
[White "MBorkovec"]
[Black "Maldaj"]
[Result "1/2-1/2"]
[WhiteElo "2285"]
[BlackElo "2410"]
[TimeControl "180+1"]
[EndTime "10:30:36 PDT"]
[Termination "Remíza dohodou"]

1. e4 {[%clk 0:03:00.9]} 1... c5 {[%clk 0:02:59.9]} 2. Nf3 {[%clk 0:03:00.6]}
2... d6 {[%clk 0:03:00.1]} 3. d4 {[%clk 0:03:00.7]} 3... cxd4 {[%clk 0:03:01]}
4. Nxd4 {[%clk 0:03:01]} 4... Nf6 {[%clk 0:03:01.3]} 5. Nc3 {[%clk 0:03:01.6]}
5... a6 {[%clk 0:03:01.7]} 6. Bg5 {[%clk 0:03:02.1]} 6... Nbd7 {[%clk
0:03:01.6]} 7. f4 {[%clk 0:03:02.4]} 7... Qc7 {[%clk 0:03:01.5]} 8. Qe2 {[%clk
0:03:02.9]} 8... h6 {[%clk 0:03:01.4]} 9. Bxf6 {[%clk 0:03:01.5]} 9... gxf6
{[%clk 0:02:58]} 10. O-O-O {[%clk 0:02:59.4]} 10... e6 {[%clk 0:02:57.7]} 11. f5
{[%clk 0:02:58.6]} 11... Ne5 {[%clk 0:02:53]} 12. fxe6 {[%clk 0:02:58.6]} 12...
fxe6 {[%clk 0:02:51.7]} 13. Qh5+ {[%clk 0:02:51.8]} 13... Qf7 {[%clk 0:02:50.7]}
14. Be2 {[%clk 0:02:52]} 14... Qxh5 {[%clk 0:02:45.3]} 15. Bxh5+ {[%clk
0:02:51]} 15... Ke7 {[%clk 0:02:46.1]} 16. Rhf1 {[%clk 0:02:50.5]} 16... Rg8
{[%clk 0:02:44.8]} 17. g3 {[%clk 0:02:47.7]} 17... Bd7 {[%clk 0:02:44.1]} 18.
Nf3 {[%clk 0:02:15.4]} 18... Rc8 {[%clk 0:02:36.5]} 19. Nxe5 {[%clk 0:02:14.4]}
19... dxe5 {[%clk 0:02:35]} 20. Rf3 {[%clk 0:01:46.4]} 20... Bc6 {[%clk
0:02:33.1]} 21. Rfd3 {[%clk 0:01:42.1]} 21... Bg7 {[%clk 0:02:19]} 22. Bg4
{[%clk 0:01:29.3]} 22... Bh8 {[%clk 0:02:02.8]} 23. Bh3 {[%clk 0:01:28.4]} 23...
h5 {[%clk 0:01:59.7]} 24. Rd6 {[%clk 0:01:25.4]} 24... Rcd8 {[%clk 0:01:33.1]}
25. Rxd8 {[%clk 0:01:22.5]} 25... Rxd8 {[%clk 0:01:32.6]} 26. Rxd8 {[%clk
0:01:23.1]} 26... Kxd8 {[%clk 0:01:33.5]} 27. Bxe6 {[%clk 0:01:23.4]} 27... Bg7
{[%clk 0:01:33.1]} 28. Bd5 {[%clk 0:01:23.5]} 28... Kc7 {[%clk 0:01:29.7]} 29.
Kd2 {[%clk 0:01:22.5]} 29... Bd7 {[%clk 0:01:28.9]} 30. Kd3 {[%clk 0:01:18.4]}
30... b5 {[%clk 0:01:24.8]} 31. a3 {[%clk 0:01:17.2]} 31... Kd6 {[%clk
0:01:23.5]} 32. Bf7 {[%clk 0:01:17]} 32... h4 {[%clk 0:01:20.9]} 33. gxh4 {[%clk
0:01:15.3]} 33... f5 {[%clk 0:01:21.2]} 34. exf5 {[%clk 0:01:11.2]} 34... Bxf5+
{[%clk 0:01:20.7]} 35. Ne4+ {[%clk 0:01:07.2]} 35... Ke7 {[%clk 0:01:20.3]} 36.
Bh5 {[%clk 0:01:05.9]} 36... Bf6 {[%clk 0:01:14.6]} 37. Bf3 {[%clk 0:00:59.8]}
37... Bxh4 {[%clk 0:01:13.8]} 38. c4 {[%clk 0:00:59.9]} 38... bxc4+ {[%clk
0:01:12.1]} 39. Kxc4 {[%clk 0:00:59.5]} 39... Bxe4 {[%clk 0:01:01.5]} 40. Bxe4
{[%clk 0:00:59]} 40... Bf2 {[%clk 0:01:01.1]} 41. b4 {[%clk 0:00:53.9]} 41...
Kd6 {[%clk 0:01:00]} 42. a4 {[%clk 0:00:53.1]} 42... Be1 {[%clk 0:00:54.3]} 43.
Bb7 {[%clk 0:00:49.9]} 43... a5 {[%clk 0:00:51.6]} 44. bxa5 {[%clk 0:00:50]}
44... Bxa5 {[%clk 0:00:51]} 45. h4 {[%clk 0:00:50.6]} 45... Ke7 {[%clk
0:00:50.7]} 46. Kd5 {[%clk 0:00:48.5]} 46... Kf6 {[%clk 0:00:50.6]} 47. Bc8
{[%clk 0:00:38.9]} 47... Bc3 {[%clk 0:00:46.8]} 48. Bg4 {[%clk 0:00:37.3]} 48...
Ba5 {[%clk 0:00:45.7]} 49. Kc4 {[%clk 0:00:36.9]} 49... Be1 {[%clk 0:00:45.7]}
50. Kd5 {[%clk 0:00:34.1]} 1/2-1/2

[Event "Betsys MČR v online bleskovém šachu 2021"]
[Site "Chess.com"]
[Date "2021.04.17"]
[Round "9"]
[White "rakintsev"]
[Black "MatyldaCZ"]
[Result "1-0"]
[WhiteElo "1741"]
[BlackElo "1416"]
[TimeControl "180+1"]
[EndTime "10:30:37 PDT"]
[Termination "Uživatel rakintsev zvítězil matem"]

1. e4 {[%clk 0:02:23.8]} 1... e5 {[%clk 0:02:59.2]} 2. Nf3 {[%clk 0:02:21.5]}
2... Nc6 {[%clk 0:02:59.1]} 3. Bb5 {[%clk 0:02:19.5]} 3... d6 {[%clk 0:02:58.4]}
4. O-O {[%clk 0:02:18.9]} 4... Nf6 {[%clk 0:02:57.7]} 5. d3 {[%clk 0:02:18]}
5... Be7 {[%clk 0:02:57.9]} 6. c3 {[%clk 0:02:17.6]} 6... O-O {[%clk 0:02:57.5]}
7. Be3 {[%clk 0:02:16.3]} 7... Bd7 {[%clk 0:02:56.5]} 8. Nbd2 {[%clk 0:02:14.6]}
8... a6 {[%clk 0:02:56.6]} 9. Ba4 {[%clk 0:02:13.6]} 9... Re8 {[%clk 0:02:55.1]}
10. Kh1 {[%clk 0:02:11.4]} 10... Bg4 {[%clk 0:02:53.3]} 11. Qe1 {[%clk
0:02:08.3]} 11... Bxf3 {[%clk 0:02:50.4]} 12. Nxf3 {[%clk 0:02:07]} 12... Qd7
{[%clk 0:02:45.4]} 13. Ng1 {[%clk 0:02:06.3]} 13... Bf8 {[%clk 0:02:43.9]} 14.
f4 {[%clk 0:02:05.4]} 14... exf4 {[%clk 0:02:41.8]} 15. Rxf4 {[%clk 0:02:02.7]}
15... b5 {[%clk 0:02:39.9]} 16. Bb3 {[%clk 0:01:58.9]} 16... Ne5 {[%clk
0:02:38.4]} 17. Qf1 {[%clk 0:01:32.5]} 17... Neg4 {[%clk 0:02:18.1]} 18. Bd2
{[%clk 0:01:23.4]} 18... Be7 {[%clk 0:01:56.7]} 19. h3 {[%clk 0:01:20.9]} 19...
Ne5 {[%clk 0:01:54.4]} 20. Nf3 {[%clk 0:01:13.9]} 20... Rf8 {[%clk 0:01:45.8]}
21. d4 {[%clk 0:01:06.7]} 21... Nxf3 {[%clk 0:01:45.2]} 22. Qxf3 {[%clk
0:01:06]} 22... c6 {[%clk 0:01:36.6]} 23. Rf1 {[%clk 0:01:02.4]} 23... Ra7
{[%clk 0:01:32.2]} 24. g4 {[%clk 0:00:50.8]} 24... h6 {[%clk 0:01:31.5]} 25. Qg2
{[%clk 0:00:47.4]} 25... Bd8 {[%clk 0:01:30.5]} 26. Rf5 {[%clk 0:00:41.7]} 26...
Qe7 {[%clk 0:01:24.1]} 27. g5 {[%clk 0:00:37.8]} 27... hxg5 {[%clk 0:01:15]} 28.
Rxg5 {[%clk 0:00:34.2]} 28... g6 {[%clk 0:01:00.2]} 29. Rg3 {[%clk 0:00:28.4]}
29... d5 {[%clk 0:00:55]} 30. Bg5 {[%clk 0:00:26.1]} 30... Qd6 {[%clk
0:00:42.3]} 31. e5 {[%clk 0:00:25.2]} 31... Qe6 {[%clk 0:00:37.2]} 32. Bxf6
{[%clk 0:00:24.1]} 32... Bxf6 {[%clk 0:00:36.3]} 33. Rxf6 {[%clk 0:00:24]} 33...
Qe7 {[%clk 0:00:36.7]} 34. Rgxg6+ {[%clk 0:00:23.6]} 34... fxg6 {[%clk
0:00:34.4]} 35. Rxg6+ {[%clk 0:00:23.5]} 35... Kh8 {[%clk 0:00:29.8]} 36. Rh6+
{[%clk 0:00:20.8]} 36... Qh7 {[%clk 0:00:27.4]} 37. Rxh7+ {[%clk 0:00:20.8]}
37... Rxh7 {[%clk 0:00:28]} 38. Bc2 {[%clk 0:00:19.6]} 38... Rh6 {[%clk
0:00:25.7]} 39. Qg5 {[%clk 0:00:18.4]} 39... Re6 {[%clk 0:00:15.6]} 40. Qh5+
{[%clk 0:00:18]} 40... Kg7 {[%clk 0:00:14]} 41. Qh7# {[%clk 0:00:17.8]} 1-0

[Event "Betsys MČR v online bleskovém šachu 2021"]
[Site "Chess.com"]
[Date "2021.04.17"]
[Round "9"]
[White "Anyna"]
[Black "Petulak08"]
[Result "0-1"]
[WhiteElo "793"]
[BlackElo "1196"]
[TimeControl "180+1"]
[EndTime "10:30:40 PDT"]
[Termination "Uživatel Petulak08 zvítězil po vzdání soupeře"]

1. d4 {[%clk 0:03:00.9]} 1... d5 {[%clk 0:02:59.3]} 2. Nf3 {[%clk 0:03:01.2]}
2... Nf6 {[%clk 0:02:56.8]} 3. e3 {[%clk 0:03:01.6]} 3... c5 {[%clk 0:02:55.3]}
4. c3 {[%clk 0:02:57.3]} 4... Nc6 {[%clk 0:02:54.6]} 5. Bd3 {[%clk 0:02:55.8]}
5... e6 {[%clk 0:02:54.1]} 6. O-O {[%clk 0:02:53.1]} 6... b6 {[%clk 0:02:54.4]}
7. Re1 {[%clk 0:02:51.1]} 7... Bb7 {[%clk 0:02:54.7]} 8. Nbd2 {[%clk 0:02:48.8]}
8... Qc7 {[%clk 0:02:54.4]} 9. e4 {[%clk 0:02:45.1]} 9... dxe4 {[%clk
0:02:53.3]} 10. Nxe4 {[%clk 0:02:44]} 10... Nxe4 {[%clk 0:02:48.2]} 11. Bxe4
{[%clk 0:02:42.7]} 11... Bd6 {[%clk 0:02:44.9]} 12. d5 {[%clk 0:02:41.5]} 12...
exd5 {[%clk 0:02:38.3]} 13. Bxd5+ {[%clk 0:02:39.3]} 13... Kf8 {[%clk
0:02:35.6]} 14. Ng5 {[%clk 0:02:16.9]} 14... Ne5 {[%clk 0:02:27.5]} 15. Bxb7
{[%clk 0:02:11.4]} 15... Qxb7 {[%clk 0:02:27.3]} 16. Qxd6+ {[%clk 0:02:05.1]}
16... Qe7 {[%clk 0:02:16.8]} 17. Qxe5 {[%clk 0:01:48.6]} 17... Qxe5 {[%clk
0:02:14.9]} 18. Rxe5 {[%clk 0:01:47.4]} 18... f6 {[%clk 0:02:15.4]} 19. Rf5
{[%clk 0:01:46.1]} 19... Rd8 {[%clk 0:02:00.8]} 20. Be3 {[%clk 0:01:36.7]} 20...
h6 {[%clk 0:01:56.3]} 21. Ne6+ {[%clk 0:01:35.3]} 21... Ke7 {[%clk 0:01:55.5]}
22. Nxd8 {[%clk 0:01:34.8]} 22... Rxd8 {[%clk 0:01:55.9]} 23. Bf4 {[%clk
0:01:25.3]} 23... g6 {[%clk 0:01:48.5]} 24. Re1+ {[%clk 0:01:23.2]} 24... Kf7
{[%clk 0:01:48.1]} 25. Rxf6+ {[%clk 0:01:05.5]} 25... Kxf6 {[%clk 0:01:48.1]}
26. Bxh6 {[%clk 0:01:05.4]} 26... g5 {[%clk 0:01:46.7]} 27. f4 {[%clk
0:00:48.8]} 27... gxf4 {[%clk 0:01:42.2]} 28. Bxf4 {[%clk 0:00:47.1]} 28... Kf5
{[%clk 0:01:41.3]} 29. Bc7 {[%clk 0:00:43.5]} 29... Rd7 {[%clk 0:01:40.3]} 30.
Bg3 {[%clk 0:00:38.5]} 30... Rd2 {[%clk 0:01:37.6]} 31. Rb1 {[%clk 0:00:34]}
31... c4 {[%clk 0:01:35.9]} 32. h4 {[%clk 0:00:33.8]} 32... Kg4 {[%clk
0:01:35.5]} 33. Bf2 {[%clk 0:00:31.6]} 33... b5 {[%clk 0:01:32]} 34. b3 {[%clk
0:00:27.5]} 34... Rxa2 {[%clk 0:01:29.1]} 35. bxc4 {[%clk 0:00:27.2]} 35... bxc4
{[%clk 0:01:29.2]} 36. Rb4 {[%clk 0:00:24.1]} 36... Ra1+ {[%clk 0:01:05]} 37.
Kh2 {[%clk 0:00:21.4]} 37... Ra2 {[%clk 0:01:04.5]} 38. Bg3 {[%clk 0:00:18.8]}
38... a6 {[%clk 0:01:03.4]} 39. Rxc4+ {[%clk 0:00:18.9]} 39... Kh5 {[%clk
0:00:58.1]} 40. Bc7 {[%clk 0:00:14.8]} 40... Ra3 {[%clk 0:00:52]} 41. Rd4 {[%clk
0:00:07.2]} 41... Rxc3 {[%clk 0:00:50]} 42. Bg3 {[%clk 0:00:06]} 42... Rc5
{[%clk 0:00:45]} 43. Rd5+ {[%clk 0:00:06.6]} 43... Rxd5 {[%clk 0:00:44.3]} 44.
Be5 {[%clk 0:00:04.7]} 44... Rxe5 {[%clk 0:00:43.8]} 45. Kg3 {[%clk 0:00:05.3]}
45... Rb5 {[%clk 0:00:43]} 46. Kf4 {[%clk 0:00:05.3]} 46... a5 {[%clk
0:00:42.6]} 47. g3 {[%clk 0:00:06.1]} 47... a4 {[%clk 0:00:41.4]} 48. g4+ {[%clk
0:00:06.4]} 48... Kxh4 {[%clk 0:00:41.9]} 49. g5 {[%clk 0:00:06.4]} 49... Rxg5
{[%clk 0:00:42.1]} 0-1